fUSD/lending_fUSD_20250217
["ID","MTS","AMOUNT","RATE_DAILY","PERIOD"]
[353348982,1739789444331,-506.61389135,0.00013698,2]
[353348983,1739789444340,-697.27,0.00013698,2]
[353348986,1739789444352,-500.0,0.00013698,2]
[353348987,1739789444363,-500.0,0.00013698,2]
[353348989,1739789444373,-1521.5,0.00013698,2]
[353348991,1739789444382,-500.0,0.00013698,2]
[353348994,1739789444392,-500.0,0.00013698,2]
[353348996,1739789444402,-500.0,0.00013698,2]
[353348997,1739789444413,-659.33,0.00013698,2]
[353348999,1739789444423,-500.0,0.00013698,2]
[353349002,1739789444433,-500.0,0.00013698,2]
[353349004,1739789444441,-500.0,0.00013698,2]
[353349006,1739789444450,-500.0,0.00013698,2]
[353349008,1739789444460,-500.0,0.00013698,2]
[353349010,1739789444469,-500.0,0.00013698,2]
[353349012,1739789444478,-500.0,0.00013698,2]
[353349014,1739789444487,-500.0,0.00013698,2]
[353349016,1739789444497,-500.0,0.00013698,2]
[353349018,1739789444506,-786.11,0.00013698,2]
[353349019,1739789444515,-1062.89,0.00013698,2]
[353349021,1739789444524,-500.0,0.00013698,2]
[353349024,1739789444534,-500.0,0.00013698,2]
[353349025,1739789444543,-500.0,0.00013698,2]
[353349027,1739789444553,-650.12,0.00013698,2]
[353349030,1739789444562,-500.0,0.00013698,2]
[353349031,1739789444571,-500.0,0.00013698,2]
[353349033,1739789444580,-150.88,0.00013698,2]
[353349035,1739789444590,-500.0,0.00013698,2]
[353349037,1739789444599,-500.0,0.00013698,2]
[353349039,1739789444608,-549.71,0.00013698,2]
[353349041,1739789444620,-1073.21,0.00013698,2]
[353349043,1739789444629,-503.12081949,0.00013698,2]
[353349045,1739789444638,-500.0,0.00013698,2]
[353349047,1739789444648,-500.0,0.00013698,2]
[353349049,1739789444657,-500.95894918,0.00013698,2]
[353349051,1739789444667,-500.0,0.00013698,2]
[353349053,1739789444676,-205.76268518,0.00013698,2]
[353349055,1739789444685,-500.0,0.00013698,2]
[353349057,1739789444694,-500.0,0.00013698,2]
[353349059,1739789444703,-500.0,0.00013698,2]
[353349061,1739789444713,-500.0,0.00013698,2]
[353349063,1739789444722,-595.98482865,0.00013698,2]
[353349065,1739789444732,-505.86360364,0.00013698,2]
[353349067,1739789444742,-500.0,0.00013698,2]
[353349069,1739789444751,-500.0,0.00013698,2]
[353349071,1739789444760,-878.15,0.00013698,2]
[353349073,1739789444772,-500.0,0.00013698,2]
[353349075,1739789444782,-500.0,0.00013698,2]
[353349077,1739789444791,-504.50407588,0.00013698,2]
[353349079,1739789444800,-500.0,0.00013698,2]
[353349081,1739789444809,-500.0,0.00013698,2]
[353349083,1739789444818,-500.0,0.00013698,2]
[353349085,1739789444827,-500.0,0.00013698,2]
[353349087,1739789444836,-500.0,0.00013698,2]
[353349089,1739789444845,-500.0,0.00013698,2]
[353349091,1739789444854,-500.0,0.00013698,2]
[353349093,1739789444864,-783.07,0.00013698,2]
[353349095,1739789444874,-500.0,0.00013698,2]
[353349097,1739789444883,-500.0,0.00013698,2]
[353349099,1739789444892,-500.0,0.00013698,2]
[353349101,1739789444901,-1040.49,0.00013698,2]
[353349103,1739789444911,-500.0,0.00013698,2]
[353349127,1739789445131,-500.0,0.00013698,2]
[353349129,1739789445141,-500.0,0.00013698,2]
[353349131,1739789445150,-238.71193979,0.00013698,2]
[353349133,1739789445159,-500.0,0.00013698,2]
[353349135,1739789445168,-500.0,0.00013698,2]
[353349137,1739789445177,-500.0,0.00013698,2]
[353349139,1739789445187,-500.0,0.00013698,2]
[353349141,1739789445196,-500.0,0.00013698,2]
[353349143,1739789445205,-1187.82,0.00013698,2]
[353349145,1739789445214,-500.0,0.00013698,2]
[353349147,1739789445222,-500.0,0.00013698,2]
[353349149,1739789445232,-500.0,0.00013698,2]
[353349151,1739789445241,-500.0,0.00013698,2]
[353349153,1739789445251,-500.0,0.00013698,2]
[353349155,1739789445260,-500.0,0.00013698,2]
[353349157,1739789445269,-1398.91,0.00013698,2]
[353349159,1739789445278,-500.0,0.00013698,2]
[353349161,1739789445287,-153.65022207,0.00013698,2]
[353349163,1739789445296,-500.0,0.00013698,2]
[353349165,1739789445306,-1283.02,0.00013698,2]
[353349167,1739789445315,-557.82,0.00013698,2]
[353349169,1739789445325,-1283.02,0.00013698,2]
[353349171,1739789445334,-1283.02,0.00013698,2]
[353349173,1739789445343,-1283.02,0.00013698,2]
[353349175,1739789445352,-1283.02,0.00013698,2]
[353349177,1739789445361,-500.0,0.00013698,2]
[353349179,1739789445370,-1283.02,0.00013698,2]
[353349181,1739789445379,-1283.02,0.00013698,2]
[353349183,1739789445388,-1283.02,0.00013698,2]
[353349185,1739789445397,-500.0,0.00013698,2]
[353349187,1739789445407,-500.0,0.00013698,2]
[353349189,1739789445417,-500.0,0.00013698,2]
[353349191,1739789445426,-500.0,0.00013698,2]
[353349193,1739789445435,-500.0,0.00013698,2]
[353349195,1739789445444,-500.0,0.00013698,2]
[353349197,1739789445453,-500.0,0.00013698,2]
[353349198,1739789445463,-500.0,0.00013698,2]
[353349200,1739789445472,-500.0,0.00013698,2]
[353349202,1739789445481,-500.0,0.00013698,2]
[353349204,1739789445489,-501.27975824,0.00013698,2]
[353349206,1739789445499,-500.0,0.00013698,2]
[353349208,1739789445508,-500.0,0.00013698,2]
[353349210,1739789445517,-500.0,0.00013698,2]
[353349212,1739789445526,-500.0,0.00013698,2]
[353349214,1739789445535,-500.0,0.00013698,2]
[353349216,1739789445544,-596.39,0.00013698,2]
[353349218,1739789445553,-500.0,0.00013698,2]
[353349220,1739789445562,-500.0,0.00013698,2]
[353349222,1739789445572,-500.0,0.00013698,2]
[353349224,1739789445582,-500.0,0.00013698,2]
[353349226,1739789445591,-500.0,0.00013698,2]
[353349228,1739789445601,-500.0,0.00013698,2]
[353349230,1739789445610,-1079.8,0.00013698,2]
[353349232,1739789445619,-500.0,0.00013698,2]
[353349234,1739789445628,-589.83,0.00013698,2]
[353349236,1739789445637,-500.0,0.00013698,2]
[353349238,1739789445647,-500.0,0.00013698,2]
[353349240,1739789445656,-500.0,0.00013698,2]
[353349242,1739789445665,-500.0,0.00013698,2]
[353349244,1739789445676,-866.71,0.00013698,2]
[353349246,1739789445685,-500.0,0.00013698,2]
[353349248,1739789445695,-500.0,0.00013698,2]
[353349250,1739789445703,-500.0,0.00013698,2]
[353349252,1739789445713,-500.0,0.00013698,2]
[353349254,1739789445722,-500.0,0.00013698,2]
[353349256,1739789445731,-500.0,0.00013698,2]
[353349258,1739789445740,-500.0,0.00013698,2]
[353349260,1739789445749,-1414.18,0.00013698,2]
[353349262,1739789445758,-500.0,0.00013698,2]
[353349264,1739789445768,-1299.1,0.00013698,2]
[353349266,1739789445777,-511.1663468,0.00013698,2]
[353349268,1739789445786,-500.0,0.00013698,2]
[353349270,1739789445795,-500.0,0.00013698,2]
[353349272,1739789445804,-500.0,0.00013698,2]
[353349274,1739789445813,-500.0,0.00013698,2]
[353349276,1739789445822,-500.0,0.00013698,2]
[353349278,1739789445831,-500.0,0.00013698,2]
[353349280,1739789445840,-500.0,0.00013698,2]
[353349282,1739789445849,-500.0,0.00013698,2]
[353349284,1739789445858,-500.0,0.00013698,2]
[353349286,1739789445867,-500.0,0.00013698,2]
[353349288,1739789445876,-500.0,0.00013698,2]
[353349290,1739789445885,-500.0,0.00013698,2]
[353349292,1739789445895,-500.0,0.00013698,2]
[353349294,1739789445904,-500.0,0.00013698,2]
[353349296,1739789445913,-1112.75,0.00013698,2]
[353349298,1739789445924,-506.52008841,0.00013698,2]
[353349300,1739789445937,-500.0,0.00013698,2]
[353349302,1739789445946,-500.0,0.00013698,2]
[353349304,1739789445955,-500.0,0.00013698,2]
[353349307,1739789445964,-500.0,0.00013698,2]
[353349310,1739789445974,-508.37500325,0.00013698,2]
[353349313,1739789445983,-500.0,0.00013698,2]
[353349316,1739789445993,-500.0,0.00013698,2]
[353349320,1739789446004,-506.72506657,0.00013698,2]
[353349322,1739789446014,-1069.04,0.00013698,2]
[353349325,1739789446023,-500.0,0.00013698,2]
[353349328,1739789446032,-500.0,0.00013698,2]
[353349330,1739789446041,-694.13,0.00013698,2]
[353349333,1739789446050,-500.0,0.00013698,2]
[353349336,1739789446059,-500.0,0.00013698,2]
[353349339,1739789446069,-500.0,0.00013698,2]
[353349342,1739789446079,-500.0,0.00013698,2]
[353349344,1739789446088,-1353.71,0.00013698,2]
[353349346,1739789446097,-500.0,0.00013698,2]
[353349348,1739789446107,-1051.74,0.00013698,2]
[353349350,1739789446116,-500.0,0.00013698,2]
[353349352,1739789446125,-1276.14,0.00013698,2]
[353349355,1739789446134,-2011.61,0.00013698,2]
[353349357,1739789446143,-500.0,0.00013698,2]
[353349359,1739789446153,-500.0,0.00013698,2]
[353349360,1739789446162,-505.33885886,0.00013698,2]
[353349361,1739789446172,-1888.03,0.00013698,2]
[353349362,1739789446182,-500.0,0.00013698,2]
[353349363,1739789446191,-500.0,0.00013698,2]
[353349364,1739789446201,-500.0,0.00013698,2]
[353349365,1739789446210,-500.0,0.00013698,2]
[353349366,1739789446219,-500.0,0.00013698,2]
[353349367,1739789446228,-936.87,0.00013698,2]
[353349369,1739789446238,-500.0,0.00013698,2]
[353349371,1739789446247,-769.85,0.00013698,2]
[353349373,1739789446256,-505.33684606,0.00013698,2]
[353349375,1739789446265,-1132.18,0.00013698,2]
[353349377,1739789446274,-500.0,0.00013698,2]
[353349379,1739789446283,-500.0,0.00013698,2]
[353349380,1739789446292,-500.0,0.00013698,2]
[353349382,1739789446302,-2041.79,0.00013698,2]
[353349384,1739789446312,-935.68,0.00013698,2]
[353349386,1739789446321,-500.0,0.00013698,2]
[353349388,1739789446331,-500.0,0.00013698,2]
[353349390,1739789446340,-500.0,0.00013698,2]
[353349392,1739789446349,-632.75,0.00013698,2]
[353349394,1739789446358,-500.0,0.00013698,2]
[353349396,1739789446367,-632.75,0.00013698,2]
[353349398,1739789446376,-500.0,0.00013698,2]
[353349400,1739789446386,-954.06,0.00013698,2]
[353349402,1739789446395,-508.71092781,0.00013698,2]
[353349404,1739789446405,-500.0,0.00013698,2]
[353349406,1739789446414,-500.0,0.00013698,2]
[353349408,1739789446424,-500.0,0.00013698,2]
[353349410,1739789446433,-1646.12,0.00013698,2]
[353349412,1739789446442,-955.15,0.00013698,2]
[353349414,1739789446451,-505.0644447,0.00013698,2]
[353349416,1739789446460,-500.0,0.00013698,2]
[353349418,1739789446470,-1730.39,0.00013698,2]
[353349420,1739789446479,-2900.03,0.00013698,2]
[353349422,1739789446489,-500.0,0.00013698,2]
[353349424,1739789446499,-501.35791039,0.00013698,2]
[353349426,1739789446508,-500.0,0.00013698,2]
[353349428,1739789446517,-500.0,0.00013698,2]
[353349430,1739789446526,-500.0,0.00013698,2]
[353349431,1739789446535,-500.0,0.00013698,2]
[353349433,1739789446544,-782.62,0.00013698,2]
[353349435,1739789446554,-500.0,0.00013698,2]
[353349437,1739789446563,-500.0,0.00013698,2]
[353349439,1739789446572,-500.0,0.00013698,2]
[353349440,1739789446580,-500.0,0.00013698,2]
[353349442,1739789446589,-500.0,0.00013698,2]
[353349444,1739789446598,-1022.48,0.00013698,2]
[353349446,1739789446607,-2068.91,0.00013698,2]
[353349447,1739789446617,-1587.71,0.00013698,2]
[353349449,1739789446626,-500.0,0.00013698,2]
[353349451,1739789446635,-500.0,0.00013698,2]
[353349453,1739789446645,-500.0,0.00013698,2]
[353349455,1739789446654,-500.0,0.00013698,2]
[353349457,1739789446663,-1561.16,0.00013698,2]
[353349459,1739789446674,-1726.04,0.00013698,2]
[353349461,1739789446683,-505.78309902,0.00013698,2]
[353349463,1739789446692,-500.0,0.00013698,2]
[353349465,1739789446701,-500.0,0.00013698,2]
[353349467,1739789446711,-500.0,0.00013698,2]
[353349469,1739789446720,-500.0,0.00013698,2]
[353349470,1739789446729,-1152.22,0.00013698,2]
[353349472,1739789446739,-2485.02,0.00013698,2]
[353349474,1739789446748,-1345.26,0.00013698,2]
[353349476,1739789446758,-591.24,0.00013698,2]
[353349478,1739789446768,-502.73,0.00013698,2]
[353349480,1739789446777,-500.0,0.00013698,2]
[353349482,1739789446786,-500.0,0.00013698,2]
[353349484,1739789446796,-506.65800186,0.00013698,2]
[353349486,1739789446805,-500.0,0.00013698,2]
[353349488,1739789446815,-501.69146371,0.00013698,2]
[353349490,1739789446825,-1391.53,0.00013698,2]
[353349492,1739789446835,-500.0,0.00013698,2]
[353349493,1739789446844,-5526.13,0.00013698,2]
[353349495,1739789446854,-308.32282348,0.00013698,2]
[353349497,1739789446864,-500.0,0.00013698,2]
[353349499,1739789446873,-500.0,0.00013698,2]
[353349501,1739789446883,-1315.9,0.00013698,2]
[353349503,1739789446894,-500.0,0.00013698,2]
[353349505,1739789446905,-2079.42,0.00013698,2]
[353349507,1739789446915,-500.0,0.00013698,2]
[353349509,1739789446932,-500.0,0.00013698,2]
[353349512,1739789446942,-231.52684922,0.00013698,2]
[353349514,1739789446953,-203.15045017,0.00013698,2]
[353349515,1739789446962,-202.32152136,0.00013698,2]
[353349517,1739789446972,-500.0,0.00013698,2]
[353349519,1739789446981,-501.0042714,0.00013698,2]
[353349521,1739789446991,-1545.85,0.00013698,2]
[353349523,1739789447000,-500.0,0.00013698,2]
[353349525,1739789447011,-500.0,0.00013698,2]
[353349527,1739789447020,-2590.12,0.00013698,2]
[353349529,1739789447030,-622.43,0.00013698,2]
[353349531,1739789447039,-500.0,0.00013698,2]
[353349533,1739789447049,-500.0,0.00013698,2]
[353349535,1739789447058,-500.0,0.00013698,2]
[353349537,1739789447067,-500.0,0.00013698,2]
[353349539,1739789447077,-500.0,0.00013698,2]
[353349541,1739789447086,-1425.54,0.00013698,2]
[353349543,1739789447095,-3565.88,0.00013698,2]
[353349545,1739789447105,-500.0,0.00013698,2]
[353349547,1739789447114,-500.0,0.00013698,2]
[353349549,1739789447124,-573.63,0.00013698,2]
[353349551,1739789447133,-7125.24,0.00013698,2]
[353349552,1739789447142,-500.0,0.00013698,2]
[353349554,1739789447152,-500.0,0.00013698,2]
[353349556,1739789447162,-500.0,0.00013698,2]
[353349558,1739789447173,-1393.66,0.00013698,2]
[353349560,1739789447184,-1739.96,0.00013698,2]
[353349562,1739789447193,-500.0,0.00013698,2]
[353349564,1739789447202,-500.0,0.00013698,2]
[353349566,1739789447212,-1487.25,0.00013698,2]
[353349568,1739789447222,-500.0,0.00013698,2]
[353349570,1739789447231,-2166.93,0.00013698,2]
[353349572,1739789447241,-500.0,0.00013698,2]
[353349574,1739789447250,-2124.18,0.00013698,2]
[353349576,1739789447260,-500.0,0.00013698,2]
[353349578,1739789447269,-500.0,0.00013698,2]
[353349580,1739789447278,-248.17158364,0.00013698,2]
[353349620,1739789447662,-251.82841636,0.00013698,2]
[353349622,1739789447673,-500.0,0.00013698,2]
[353349624,1739789447683,-500.0,0.00013698,2]
[353349626,1739789447693,-500.0,0.00013698,2]
[353349628,1739789447703,-500.0,0.00013698,2]
[353349630,1739789447713,-12.50341828,0.00013698,2]
[353349632,1739789447725,-487.49658172,0.00013698,2]
[353349634,1739789447735,-1426.18,0.00013698,2]
[353349636,1739789447745,-500.0,0.00013698,2]
[353349638,1739789447754,-1504.62,0.00013698,2]
[353349640,1739789447766,-500.0,0.00013698,2]
[353349642,1739789447776,-334.46267915,0.00013698,2]
[353349644,1739789447787,-1504.53822467,0.00013698,2]
[353349646,1739789447800,-272.53177533,0.00013698,2]
[353349648,1739789447811,-500.0,0.00013698,2]
[353349650,1739789447821,-500.0,0.00013698,2]
[353349652,1739789447830,-500.0,0.00013698,2]
[353349654,1739789447840,-354.96822487,0.00013698,2]
[353349657,1739789447860,-145.03177513,0.00013698,2]
[353349659,1739789447870,-533.98022537,0.00013698,2]
[353349661,1739789447881,-748.0560267,0.00013698,2]
[353349664,1739789447893,-409.21374793,0.00013698,2]
[353349666,1739789447903,-216.76825207,0.00013698,2]
[353349668,1739789447914,-589.0474902,0.00013698,2]
[353349672,1739789447955,-1570.41425773,0.00013698,2]
[353349674,1739789447965,-692.84,0.00013698,2]
[353349676,1739789447975,-500.0,0.00013698,2]
[353349678,1739789447984,-500.0,0.00013698,2]
[353349680,1739789447993,-500.0,0.00013698,2]
[353349682,1739789448005,-1517.19,0.00013698,2]
[353349684,1739789448016,-500.0,0.00013698,2]
[353349686,1739789448025,-175.30431393,0.00013698,2]
[353349688,1739789448035,-274.25142834,0.00013698,2]
[353349690,1739789448048,-225.74857166,0.00013698,2]
[353349692,1739789448057,-500.0,0.00013698,2]
[353349694,1739789448067,-1223.86,0.00013698,2]
[353349696,1739789448076,-500.0,0.00013698,2]
[353349698,1739789448086,-500.0,0.00013698,2]
[353349700,1739789448095,-500.0,0.00013698,2]
[353349702,1739789448105,-500.0,0.00013698,2]
[353349704,1739789448115,-500.0,0.00013698,2]
[353349706,1739789448125,-500.0,0.00013698,2]
[353349708,1739789448134,-500.0,0.00013698,2]
[353349710,1739789448144,-1779.07,0.00013698,2]
[353349712,1739789448154,-500.0,0.00013698,2]
[353349714,1739789448163,-500.0,0.00013698,2]
[353349716,1739789448173,-505.49818297,0.00013698,2]
[353349718,1739789448184,-500.0,0.00013698,2]
[353349720,1739789448194,-500.0,0.00013698,2]
[353349722,1739789448204,-609.6754293,0.00013698,2]
[353349724,1739789448215,-500.0,0.00013698,2]
[353349726,1739789448225,-500.0,0.00013698,2]
[353349728,1739789448235,-623.3,0.00013698,2]
[353349730,1739789448246,-3679.62,0.00013698,2]
[353349732,1739789448257,-720.69,0.00013698,2]
[353349734,1739789448267,-500.0,0.00013698,2]
[353349736,1739789448277,-500.0,0.00013698,2]
[353349738,1739789448287,-500.0,0.00013698,2]
[353349740,1739789448298,-1765.75,0.00013698,2]
[353349742,1739789448308,-497.165442,0.00013698,2]
[353349744,1739789448319,-500.0,0.00013698,2]
[353349746,1739789448329,-500.0,0.00013698,2]
[353349748,1739789448341,-500.0,0.00013698,2]
[353349750,1739789448350,-2006.05,0.00013698,2]
[353349751,1739789448360,-500.0,0.00013698,2]
[353349753,1739789448370,-1063.17,0.00013698,2]
[353349755,1739789448380,-500.0,0.00013698,2]
[353349757,1739789448391,-2411.21,0.00013698,2]
[353349759,1739789448402,-500.0,0.00013698,2]
[353349761,1739789448412,-1126.33,0.00013698,2]
[353349763,1739789448424,-500.0,0.00013698,2]
[353349765,1739789448433,-503.24772167,0.00013698,2]
[353349767,1739789448443,-1432.1,0.00013698,2]
[353349769,1739789448453,-502.90483694,0.00013698,2]
[353349771,1739789448463,-504.05862152,0.00013698,2]
[353349773,1739789448473,-500.0,0.00013698,2]
[353349775,1739789448483,-2121.85,0.00013698,2]
[353349777,1739789448493,-500.0,0.00013698,2]
[353349779,1739789448502,-500.0,0.00013698,2]
[353349781,1739789448512,-500.0,0.00013698,2]
[353349783,1739789448522,-500.0,0.00013698,2]
[353349785,1739789448534,-500.0,0.00013698,2]
[353349787,1739789448545,-506.14965333,0.00013698,2]
[353349789,1739789448555,-1957.46,0.00013698,2]
[353349791,1739789448564,-576.62,0.00013698,2]
[353349793,1739789448574,-500.0,0.00013698,2]
[353349795,1739789448584,-500.0,0.00013698,2]
[353349797,1739789448593,-500.0,0.00013698,2]
[353349799,1739789448603,-500.0,0.00013698,2]
[353349801,1739789448613,-2581.7,0.00013698,2]
[353349802,1739789448625,-714.63,0.00013698,2]
[353349803,1739789448637,-2221.31,0.00013698,2]
[353349821,1739789448902,-270.29154062,0.00013698,2]
[353349823,1739789448919,-229.70845938,0.00013698,2]
[353349825,1739789448933,-500.0,0.00013698,2]
[353349827,1739789448945,-500.0,0.00013698,2]
[353349829,1739789448955,-500.0,0.00013698,2]
[353349831,1739789448966,-500.0,0.00013698,2]
[353349833,1739789448977,-500.0,0.00013698,2]
[353349835,1739789448987,-500.0,0.00013698,2]
[353349837,1739789448997,-671.26,0.00013698,2]
[353349839,1739789449006,-500.0,0.00013698,2]
[353349841,1739789449018,-500.0,0.00013698,2]
[353349843,1739789449028,-615.88,0.00013698,2]
[353349845,1739789449039,-500.0,0.00013698,2]
[353349847,1739789449049,-419.3201129,0.00013698,2]
[353349849,1739789449058,-837.69,0.00013698,2]
[353349851,1739789449069,-500.0,0.00013698,2]
[353349853,1739789449079,-1425.52,0.00013698,2]
[353349855,1739789449090,-500.0,0.00013698,2]
[353349857,1739789449099,-1957.56,0.00013698,2]
[353349859,1739789449108,-500.0,0.00013698,2]
[353349861,1739789449119,-564.87984386,0.00013698,2]
[353349863,1739789449129,-2255.76,0.00013698,2]
[353349865,1739789449141,-5049.57101626,0.00013698,2]
[353349867,1739789449151,-500.0,0.00013698,2]
[353349869,1739789449161,-500.0,0.00013698,2]
[353349871,1739789449171,-500.0,0.00013698,2]
[353349873,1739789449181,-500.0,0.00013698,2]
[353349875,1739789449191,-500.0,0.00013698,2]
[353349877,1739789449202,-500.0,0.00013698,2]
[353349879,1739789449212,-500.0,0.00013698,2]
[353349881,1739789449222,-500.0,0.00013698,2]
[353349883,1739789449231,-500.0,0.00013698,2]
[353349885,1739789449242,-1459.47,0.00013698,2]
[353349887,1739789449252,-1818.18,0.00013698,2]
[353349889,1739789449262,-1086.52,0.00013698,2]
[353349891,1739789449272,-5439.72,0.00013698,2]
[353349893,1739789449283,-500.0,0.00013698,2]
[353349895,1739789449293,-500.0,0.00013698,2]
[353349897,1739789449304,-500.0,0.00013698,2]
[353349899,1739789449313,-500.0,0.00013698,2]
[353349901,1739789449324,-3110.52,0.00013698,2]
[353349903,1739789449334,-500.0,0.00013698,2]
[353349905,1739789449344,-514.40845264,0.00013698,2]
[353349907,1739789449355,-1828.81,0.00013698,2]
[353349908,1739789449365,-500.0,0.00013698,2]
[353349910,1739789449380,-500.0,0.00013698,2]
[353349912,1739789449391,-500.0,0.00013698,2]
[353349914,1739789449401,-500.0,0.00013698,2]
[353349916,1739789449411,-500.0,0.00013698,2]
[353349918,1739789449420,-500.0,0.00013698,2]
[353349920,1739789449430,-500.0,0.00013698,2]
[353349922,1739789449442,-500.0,0.00013698,2]
[353349924,1739789449452,-1934.4,0.00013698,2]
[353349926,1739789449463,-500.0,0.00013698,2]
[353349928,1739789449473,-500.0,0.00013698,2]
[353349930,1739789449482,-500.0,0.00013698,2]
[353349932,1739789449493,-502.21726729,0.00013698,2]
[353349934,1739789449503,-500.0,0.00013698,2]
[353349936,1739789449513,-500.0,0.00013698,2]
[353349938,1739789449522,-500.0,0.00013698,2]
[353349940,1739789449532,-1891.19,0.00013698,2]
[353349942,1739789449544,-504.47355783,0.00013698,2]
[353349944,1739789449555,-503.72249523,0.00013698,2]
[353349946,1739789449564,-1825.13,0.00013698,2]
[353349948,1739789449574,-500.0,0.00013698,2]
[353349950,1739789449583,-385.54312696,0.00013698,2]
[353349951,1739789449593,-500.0,0.00013698,2]
[353349953,1739789449602,-500.0,0.00013698,2]
[353349954,1739789449612,-534.69278765,0.00013698,2]
[353349955,1739789449621,-1060.6,0.00013698,2]
[353349956,1739789449631,-500.0,0.00013698,2]
[353349957,1739789449641,-1493.72,0.00013698,2]
[353349958,1739789449652,-500.0,0.00013698,2]
[353349959,1739789449662,-500.0,0.00013698,2]
[353349960,1739789449672,-500.0,0.00013698,2]
[353349961,1739789449682,-500.0,0.00013698,2]
[353349962,1739789449692,-2255.32,0.00013698,2]
[353349963,1739789449702,-1256.66,0.00013698,2]
[353349964,1739789449712,-500.0,0.00013698,2]
[353349965,1739789449722,-504.4877135,0.00013698,2]
[353349966,1739789449731,-2874.04,0.00013698,2]
[353349967,1739789449741,-500.0,0.00013698,2]
[353349968,1739789449751,-1386.52,0.00013698,2]
[353349969,1739789449760,-500.0,0.00013698,2]
[353349970,1739789449770,-655.2,0.00013698,2]
[353349971,1739789449779,-2289.74,0.00013698,2]
[353349972,1739789449789,-500.0,0.00013698,2]
[353349973,1739789449799,-503.28011128,0.00013698,2]
[353349974,1739789449808,-500.0,0.00013698,2]
[353349975,1739789449817,-500.0,0.00013698,2]
[353349976,1739789449826,-500.0,0.00013698,2]
[353349977,1739789449835,-2196.78,0.00013698,2]
[353349978,1739789449844,-500.0,0.00013698,2]
[353349979,1739789449854,-502.08722775,0.00013698,2]
[353349980,1739789449863,-500.0,0.00013698,2]
[353349981,1739789449872,-500.0,0.00013698,2]
[353349982,1739789449881,-1604.75,0.00013698,2]
[353349983,1739789449890,-500.0,0.00013698,2]
[353349984,1739789449899,-500.50875287,0.00013698,2]
[353349985,1739789449909,-500.0,0.00013698,2]
[353349986,1739789449918,-642.82,0.00013698,2]
[353349987,1739789449932,-961.46,0.00013698,2]
[353349988,1739789449941,-500.0,0.00013698,2]
[353349989,1739789449950,-500.0,0.00013698,2]
[353349990,1739789449959,-619.72,0.00013698,2]
[353349991,1739789449968,-1028.28,0.00013698,2]
[353349992,1739789449978,-2636.77,0.00013698,2]
[353349993,1739789449988,-500.0,0.00013698,2]
[353349994,1739789449997,-507.85058523,0.00013698,2]
[353349995,1739789450010,-1389.65,0.00013698,2]
[353349996,1739789450020,-1540.98,0.00013698,2]
[353349997,1739789450030,-500.0,0.00013698,2]
[353349998,1739789450039,-500.0,0.00013698,2]
[353349999,1739789450050,-500.0,0.00013698,2]
[353350000,1739789450059,-503.24398868,0.00013698,2]
[353350001,1739789450069,-734.42,0.00013698,2]
[353350002,1739789450078,-500.0,0.00013698,2]